Cogmind - Beta 14 @@@ ROGUE MODE // 2024.08.10 @ 10:53:41 Player: Tyrockal Result: Destroyed by NH-YY7(R) with Subdweller Laser Performance ------------- Evolutions (0) 0 Regions Visited (3) 600 Robots Destroyed (17) 85 Value Destroyed (554) 554 Prototype IDs (1) 20 Alien Tech Used (0) 0 Bonus (30) 30 TOTAL SCORE: 1289 Bonus ------- Follower Combat Kills 30 Cogmind --------- Core Integrity 0/250 Matter 300/300 Energy 250/250 System Corruption 0% Temperature Cool (6) Movement Walking (120) Location -10/Subcaves Parts ------- > --- POWER (1) -------- Ion Engine > --- PROPULSION (2) --- Carbon-fiber Leg Carbon-fiber Leg > --- UTILITY (2) ------ Improved Heat Sink Medium Storage Unit > --- WEAPON (2) ------- Beamcaster Bore Cannon > --- INVENTORY (10) --- Ion Engine Carbon-fiber Leg Small Storage Unit Makeshift Light Armor Plating Scrap Shield Splice Drone Bay (6/6) Slug Cannon Grenade Launcher Peak State ------------ > --- POWER ------------ Ion Engine > --- PROPULSION ------- Carbon-fiber Leg Carbon-fiber Leg > --- UTILITY ---------- Small Storage Unit Splice Drone Bay > --- WEAPON ----------- Beamcaster Bore Cannon > --- INVENTORY -------- Ion Engine Carbon-fiber Leg Medium Storage Unit Scrap Shield Heavy EM Pulse Gun Grenade Launcher [Rating: 26] Favorites ----------- Power Ion Engine Engine Ion Engine Propulsion Aluminum Leg Leg Aluminum Leg Utility Small Storage Unit Device Splice Drone Bay Storage Small Storage Unit Processor Visual Processing Unit Weapon Heavy EM Pulse Gun Energy Gun Heavy EM Pulse Gun Ballistic Cannon Bore Cannon Launcher Grenade Launcher Build | -11 -10 -10 -10 ------- Run | Yrd Mat Min Sub Slots Evolved . | . . . . Power . | . . . . Propulsion . | . . . . Utility . | . . . . Weapon . | . . . . Parts Attached 28 | 6 5 5 12 Power 2 | 1 . . 1 Engine 2 | 1 . . 1 Core . | . . . . Reactor . | . . . . Propulsion 7 | 2 . . 5 Treads . | . . . . Leg 7 | 2 . . 5 Wheel . | . . . . Hover . | . . . . Flight . | . . . . Utility 10 | 1 2 5 2 Device 3 | . . 2 1 Storage 6 | 1 1 3 1 Processor 1 | . 1 . . Hackware . | . . . . Protection . | . . . . Artifact . | . . . . Weapon 9 | 2 3 . 4 Energy Gun 7 | 2 3 . 2 Energy Cannon . | . . . . Ballistic Gun . | . . . . Ballistic Cannon 1 | . . . 1 Launcher 1 | . . . 1 Special Weapon . | . . . . Impact Weapon . | . . . . Slashing Weapon . | . . . . Piercing Weapon . | . . . . Special Melee Weapon . | . . . . Unidentified Prototypes 1 | . . 1 . Parts Lost 2 | . . . 2 Power . | . . . . Propulsion . | . . . . Utility . | . . . . Weapon 2 | . . . 2 Highest Loss Streak 1 | . . . 1 To Critical Strikes . | . . . . Average Slot Usage (%) 98 | . 92 99 99 Engine 14 | . 14 14 14 Leg 28 | . 28 28 28 Device 10 | . . 11 14 Storage 14 | . 14 14 14 Processor 2 | . 8 2 . Energy Gun 22 | . 26 28 17 Ballistic Cannon 4 | . . . 10 Peak Build Rating 26 | 6 11 16 26 Average Rating 16 | 4 9 15 20 On Entrance 8 | . 6 11 16 Naked Turns . | . . . . Heaviest Build 32 | 13 21 24 32 Greatest Support 30 | 20 20 20 30 Greatest Overweight (x) 1 | . 1 1 1 Average Overweight (x) . | . . . . Largest Inventory Capacity 10 | 8 8 10 10 Average Capacity 8 | 7 8 8 8 Most Carried 9 | 2 8 8 9 Average Carried 7 | 1 7 7 8 Final Capacity 10 | 8 8 8 10 Final Carried 9 | 2 8 8 9 Class Distribution -------------------- 67% | Mutant 32% | Scavenger-Mutant Dominant Class ---------------- Mutant | -10/Materials Mutant | -10/Mines Scavenger-Mutant | -10/Subcaves Resources | -11 -10 -10 -10 ----------- Run | Yrd Mat Min Sub Matter Collected 642 | 247 63 50 282 Remotely . | . . . . Salvage Created 691 | . 302 . 389 Parts 31 | . 15 . 16 Haulers Intercepted 1 | . 1 . . Recyclers Shooed 1 | . 1 . . Parts Field Recycled . | . . . . Retrieved Matter . | . . . . Parts Self-Destructed 6 | . . . 6 Prevented . | . . . . Kills | -11 -10 -10 -10 ------- Run | Yrd Mat Min Sub Combat Hostiles Destroyed 13 | . 4 . 9 Guns 5 | . 3 . 2 Cannons 4 | . . . 4 AOE 4 | . 1 . 3 Classes Destroyed 5 | . 4 . 1 Worker 1 | . 1 . . Hauler 1 | . 1 . . Watcher 2 | . 2 . . Grunt 4 | . 4 . . Subdweller 9 | . . . 9 Best Kill Streak 5 | . 3 . 5 Combat Bots Only 5 | . 2 . 5 Max Kills in Single Turn 2 | . 2 . 2 Gunslinging . | . . . . Exploded 2 | . 1 . 2 Melee . | . . . . Uniques/NPCs Destroyed . | . . . . Combat | -11 -10 -10 -10 -------- Run | Yrd Mat Min Sub Hostile Shots Fired 85 | . 14 . 71 Missed 33 | . 7 . 26 Damage Taken 1059 | . 89 . 970 Core 269 | . 10 . 259 Absorbed by Shields . | . . . . Regen/Repaired (Parts) 30 | . 30 . . Core Remaining (%) 100 | 100 . . . Volleys Fired 50 | . 17 . 33 Largest 2 | . 2 . 2 Hottest 132 | . 90 . 132 Shots Fired 100 | . 34 . 66 Gun 77 | . 34 . 43 Cannon 21 | . . . 21 Launcher 2 | . . . 2 Special . | . . . . Kinetic 21 | . . . 21 Thermal 32 | . . . 32 Explosive 2 | . . . 2 Electromagnetic 45 | . 34 . 11 Robot Hit Streak 11 | . 5 . 11 Robot Miss Streak 3 | . 3 . 2 Penetration Max . | . . . . Secondary Targets . | . . . . Shots Hit Robots 61 | . 19 . 42 Core Hits 22 | . 8 . 14 Critical Kills 3 | . . . 3 Critical Parts Destroyed . | . . . . Critical Strikes 11 | . . . 11 Burn 3 | . . . 3 Destroy 7 | . . . 7 Corrupt 1 | . . . 1 Melee Attacks . | . . . . Impact . | . . . . Slashing . | . . . . Piercing . | . . . . Sneak Attacks . | . . . . Combat Hostiles . | . . . . Follow-up Attacks . | . . . . Damage Inflicted 1426 | . 421 . 1005 Guns 933 | . 385 . 548 Cannons 262 | . . . 262 Explosions 231 | . 36 . 195 Melee . | . . . . Ramming . | . . . . Kinetic 262 | . . . 262 Thermal 465 | . 36 . 429 Explosive 195 | . . . 195 Electromagnetic 504 | . 385 . 119 Impact . | . . . . Slashing . | . . . . Piercing . | . . . . Highest Corruption . | . . . . Average Corruption . | . . . . Corruption Purged . | . . . . Corruption Blocked . | . . . . Overload Shots . | . . . . Overflow Damage . | . . . . Projectiles . | . . . . Explosions . | . . . . Melee . | . . . . Knockbacks 4 | . . . 4 Impact . | . . . . Kinetic 4 | . . . 4 Secondary . | . . . . Self-Inflicted Damage . | . . . . Shots . | . . . . Rammed . | . . . . Targets Rammed . | . . . . Kicked . | . . . . Crushed . | . . . . Highest Temperature 210 | . 210 . 1 Average Temperature 61 | . 65 . 1 Received Heat Transfer 168 | . 51 . 117 Siege Activations . | . . . . Robots Corrupted 1 | . 1 . . Combat Hostiles . | . . . . Parts Fried . | . . . . Impact Corruptions . | . . . . Robots Melted . | . . . . Combat Hostiles . | . . . . Parts Melted . | . . . . Heat Transferred 904 | . 50 . 854 Parts Sabotaged . | . . . . Parts Stolen . | . . . . Parts Stripped . | . . . . Power Chain Reactions 1 | . 1 . . Alert | -11 -10 -10 -10 ------- Run | Yrd Mat Min Sub Peak Influence 186 | . 186 6 . Initial 6 | . . 6 . Average 40 | . 94 3 . Maximum Alert Level . | . . . . Low Security (%) 100 | 100 100 100 . Level 1 . | . . . . Level 2 . | . . . . Level 3 . | . . . . Level 4 . | . . . . Level 5 . | . . . . High Security . | . . . . Max Security . | . . . . Squads Dispatched 1 | . 1 . . Investigation 1 | . 1 . . Extermination . | . . . . Reinforcement . | . . . . Assault . | . . . . Garrison . | . . . . Intercept . | . . . . Searches Triggered . | . . . . Construction Impeded . | . . . . Haulers Reinforced . | . . . . Active Scanning Responses . | . . . . Cargo Convoy Interrupts . | . . . . Stealth | -11 -10 -10 -10 --------- Run | Yrd Mat Min Sub Distress Signals 1 | . 1 . . Communications Jammed . | . . . . Distress Signals . | . . . . Times Spotted 22 | . 9 . 13 Peak Tracking Total 6 | . 2 . 6 Tactical Retreats . | . . . . Traps | -11 -10 -10 -10 ------- Run | Yrd Mat Min Sub Traps Triggered 1 | . 1 . . Indirectly . | . . . . Trap Hack Attempts . | . . . . Triggered . | . . . . Disarmed . | . . . . Reprogrammed . | . . . . Reused . | . . . . Traps Extracted . | . . . . Installed . | . . . . Triggered 1 | . . . 1 Machines | -11 -10 -10 -10 ---------- Run | Yrd Mat Min Sub Machines Disabled 1 | . 1 . . Max in Single Turn 1 | . 1 . . Machines Repaired . | . . . . Machines Dismantled . | . . . . Machines Sabotaged . | . . . . Overloaded Fab Kills . | . . . . Hacking | -11 -10 -10 -10 --------- Run | Yrd Mat Min Sub Machines Accessed 6 | . 5 1 . Terminals 4 | . 4 . . Fabricators . | . . . . Repair Stations 1 | . 1 . . Recycling Units . | . . . . Scanalyzers . | . . . . Garrison Access . | . . . . Total Hacks 15 | . 14 1 . Successful 9 | . 8 1 . Failed 6 | . 6 . . Catastrophic 1 | . 1 . . Database Lockouts . | . . . . Manual . | . . . . Terminals 12 | . 12 . . Fabricators . | . . . . Repair Stations 2 | . 2 . . Recycling Units . | . . . . Scanalyzers . | . . . . Garrison Access . | . . . . Terminal Hacks 7 | . 6 1 . Robot Analysis 1 | . 1 . . Open Door 1 | . . 1 . Investigation Status 1 | . 1 . . Reinforcement Status 1 | . 1 . . Registered Components 1 | . 1 . . Registered Prototypes 1 | . 1 . . Zone Layout 1 | . 1 . . Fabricator Hacks . | . . . . Repair Station Hacks 2 | . 2 . . Scan Component 1 | . 1 . . Repair 1 | . 1 . . Recycling Unit Hacks . | . . . . Scanalyzer . | . . . . Garrison Access Hacks . | . . . . Unauthorized Hacks . | . . . . Terminals . | . . . . Fabricators . | . . . . Repair Stations . | . . . . Recycling Units . | . . . . Scanalyzers . | . . . . Garrison Access . | . . . . Data Cores Recovered . | . . . . Used . | . . . . Hacking Detections 3 | . 3 . . Full Trace Events 1 | . 1 . . Feedback Events . | . . . . Feedback Blocked . | . . . . Robot Schematics Acquired . | . . . . Robots Built . | . . . . Authchips . | . . . . Time . | . . . . Total Robot Build Rating . | . . . . Part Schematics Acquired . | . . . . Parts Built . | . . . . Authchips . | . . . . Time . | . . . . Total Part Build Rating . | . . . . Parts Repaired 1 | . 1 . . Time 32 | . 32 . . Parts Recycled . | . . . . Recycled Matter . | . . . . Retrieved Matter . | . . . . Retrieved Components . | . . . . Parts Scanalyzed . | . . . . Part Schematics Acquired . | . . . . Parts Damaged . | . . . . Bothacking | -11 -10 -10 -10 ------------ Run | Yrd Mat Min Sub Used RIF Installer . | . . . . Robots Hacked . | . . . . Non-combat . | . . . . Combat . | . . . . Robot Hacks Applied . | . . . . Relay Couplers Released . | . . . . Fabnet Peak Effective % . | . . . . Robots Rewired . | . . . . Allies Hacked . | . . . . Hacks Repelled . | . . . . Allies | -11 -10 -10 -10 -------- Run | Yrd Mat Min Sub Total Allies . | . . . . Largest Group . | . . . . Highest-Rated Group . | . . . . Highest-Rated Ally . | . . . . Total Orders . | . . . . Ally Attacks 5 | . . . 5 Total Damage 19 | . . . 19 Kills 1 | . . . 1 Allies Corrupted . | . . . . Allies Melted . | . . . . Intel | -11 -10 -10 -10 ------- Run | Yrd Mat Min Sub Robot Analysis Total 1 | . 1 . . Derelict Logs Recovered . | . . . . Drone Launches 5 | . . . 5 Drone Recoveries 5 | . . . 5 Exploration | -11 -10 -10 -10 ------------- Run | Yrd Mat Min Sub Turns Passed 2302 | 67 510 665 1060 Spaces Moved 1236 | 50 333 166 687 Core 4 | 4 . . . Treads . | . . . . Legs 1232 | 46 333 166 687 Wheels . | . . . . Hover . | . . . . Flight . | . . . . Fastest Speed 50 | 50 120 120 120 Average Speed 133 | 114 120 158 135 Slowest Speed 190 | 120 190 190 190 Overloaded Moves . | . . . . Propulsion Burnouts . | . . . . Robots Hopped . | . . . . Cave-ins Triggered . | . . . . Exploration Rate (%) 35 | 3 62 36 41 Regions Visited 3 Branch Regions 2 Pre-discovered Areas 1 | . . . 1 Known Exits Taken . | . . . . Unknown Exits Taken 3 | 1 1 1 . Scrap Searched 5 | . . 1 4 Spaces Dug . | . . . . Terrain Destroyed 22 | . 1 . 21 Melee . | . . . . Projectile 8 | . . . 8 AOE 14 | . 1 . 13 Terrain Rammed . | . . . . Walls Destroyed . | . . . . Machines Disabled . | . . . . Actions | -11 -10 -10 -10 --------- Run | Yrd Mat Min Sub Total 1785 | 57 408 569 751 Wait 433 | . 41 389 3 Move 1233 | 49 332 165 687 Hop . | . . . . Pick Up 21 | 2 8 5 6 Fast Attach 14 | 6 5 . 3 Attach 2 | . . 1 1 Detach 1 | . . . 1 Swap 12 | . . 4 8 Drop 19 | . 5 5 9 Fire 50 | . 17 . 33 Melee . | . . . . Ram . | . . . . Kick . | . . . . Crush . | . . . . Escape Stasis . | . . . . Rewire . | . . . . Trap . | . . . . Miscellaneous . | . . . . Route ------- -11/Scrapyard -10/Materials (discovered 4 exits: [*Mat x2] / *Min x2) -10/Mines (discovered 2 exits: [*Mat] / [*Sub]) -10/Subcaves (discovered 1 exit: [*Mat]) History --------- Turn | Location | Event 2 | -11/Scrapyard | Met Revision 17 20 | -11/Scrapyard | Discovered new exit (range 15) 68 | -11/Scrapyard | Entered Materials 204 | -10/Materials | Discovered new exit (range 9) 264 | -10/Materials | Discovered new exit (range 11) 318 | -10/Materials | Build established: Mutant 325 | -10/Materials | Repaired Hvy. EM Pulse Gun 360 | -10/Materials | Discovered new exit (range 5) 513 | -10/Materials | Discovered new exit (range 18) 578 | -10/Materials | Entered Mines 605 | -10/Mines | Discovered new exit (range 11) 665 | -10/Mines | Found the Drone Emporium 674 | -10/Mines | Found Prototype Device 677 | -10/Mines | Identified Splice Drone Bay 751 | -10/Mines | Found DCF Scrap (14 items) 758 | -10/Mines | Assembled infested the area 1222 | -10/Mines | Discovered new exit (range 12) 1243 | -10/Mines | Entered Subcaves 1462 | -10/Subcaves | Ambushed by swarm of Subdwellers 1501 | -10/Subcaves | Core integrity fell below 50% 1505 | -10/Subcaves | Lost 4 allies 1867 | -10/Subcaves | Build established: Scavenger-Mutant 1923 | -10/Subcaves | Core integrity fell below 20% 2170 | -10/Subcaves | Learned location of Zion (-7) 2170 | -10/Subcaves | Met a Zionite searching for "candidates" 2260 | -10/Subcaves | Discovered new exit (range 10) 2291 | -10/Subcaves | Disturbed a concealed Subdweller 2303 | -10/Subcaves | Destroyed by NH-YY7(R) with Subdweller Laser Last Messages --------------- 02289_ Searching scrap... 02289_ Found Slug Cannon. 02289_ Found 44 Matter. 02291_ NH-YY7(R) angrily emerges from the Twisted Machinery. 02291_ HV Slug penetrates NH-YY7(R). 02291_ NH-YY7(R) suffers critical hit (Destroy). 02291_ NH-YY7(R) knocked back. 02291_ HV Slug penetrates NH-YY7(R). 02292_ Acquired 7 matter. 02294_ NH-YY7(R) affixes Scrap Shield Fragment to Scrap Shield. 02294_ HV Slug penetrates NH-YY7(R). 02294_ NH-YY7(R) knocked back. 02295_ Acquired 7 matter. 02300_ NH-YY7(R) suffers critical hit (Burn). 02300_ NH-YY7(R) knocked back. 02301_ Acquired 7 matter. 02302_ NH-YY7(R) affixes Scrap Shield Fragment to Scrap Shield. Map ----- +----------------------------------------------------+ | ?????????????????????????????????????????????????? | | ?????????????????????????????????????????????????? | | ?????????????????????????????????????????????????? | | ?????????????????????????????????????????????????? | | ?????????????????????????????????????????????????? | | ?????????????????????????????????????????????????? | | ?????????????????????????????????????????????????? | | ?????????????????????????????????????????? ????? | | ?????????????????????????????????????????? ??## | | ?????????????????????????????????? ?????? ## | | ?????????????????????????????????? ????? | | ?????????????????????????????????? ????? | | ?????????????????????????????????# ????? | | ????????????????????????????????? #?????????# | | ?????????????????????????????????# ?????????## | | ?????????????????????????????????# ##?????????## | | ????????????????????????????????## ???????????# | | ????????????????????????????????? ###????????## | | ????????????????????????????????## #??####### | | ???????????????????????????????## #??# ## | | ???????????????????????????????# #??# | | ???????????????????????????##### ##### #### | | ????????????????????????#### # ## ##### | | ???????????????????????##]## ## # | | ???????????????????????#%[%##< | | ???????????????????????##@ ![R < ;# # | | ???????????????????????#[|;%#< ######### | | ???????????????????????##%### #???????## | | ????????????????????????#### ##????????## | | ???????????????????????????#########??????????#### | | ?????????????????????????????????????????????????? | | ?????????????????????????????????????????????????? | | ?????????????????????????????????????????????????? | | ?????????????????????????????????????????????????? | | ?????????????????????????????????????????????????? | | ?????????????????????????????????????????????????? | | ?????????????????????????????????????????????????? | | ?????????????????????????????????????????????????? | | ?????????????????????????????????????????????????? | | ?????????????????????????????????????????????????? | | ?????????????????????????????????????????????????? | | ?????????????????????????????????????????????????? | | ?????????????????????????????????????????????????? | | ?????????????????????????????????????????????????? | | | | | | | | | | | | | +----------------------------------------------------+ Best States ------------- Heat Dissipation 39 Energy Generation 10 Energy Capacity 250 Matter Stores 300 Matter Capacity 300 Sight Range 18 Terrain Scan Density 10 Evasion (%) 55 Item Schematics ----------------- None Robot Schematics ------------------ None Fabricated ------------ Nothing Alien Tech Used ----------------- None Achievements -------------- None Challenges ------------ None Game ------ Seed SniperSuperquantumFirepult Manual? 0 Play Time 00:24:14 Cumulative 11.5 hours Start 2024.08.10 @ 10:32:26 End 2024.08.10 @ 10:53:41 Sessions 1 Manual Loads 0 Difficulty Rogue Special Mode None Game No. 20 Rogue 20 Adventurer 0 Explorer 0 Win Type - Total 0 Types 0/0/0/0/0/0/0/0/0 Lore% 10 Gallery% 22 Achievement% 16 Wizard Run 0 Options --------- Layout 1 ASCII 0 Keyboard 0 Movement Mouse Keybinds 0 Fullscreen 1 Font 24/Smallcaps Map View 50x35 Zoom Use 0% Tactical HUD 1 Map Filters NONE Filters NONE Steam 1 RUN: d1c31cda-f76e-4302-b15a-06aeafe88b24